bitfinex/quotes_ETHUSD_20251026
["timestamp","ask_amount","ask_price","bid_price","bid_amount"]
[1761511633271,2.45714493,4069.8,4069.1,2.28188934]
[1761511633471,6.43711447,4069.8,4069.1,2.28188934]
[1761511633652,2.70838564,4069.7,4069.1,2.28188934]
[1761511634554,0.2512,4069.6,4069.1,2.28188934]
[1761511636179,0.2512,4069.6,4069.0,2.45959117]
[1761511636796,0.2512,4069.6,4069.1,2.45754264]
[1761511637093,0.92003552,4069.6,4069.0,0.58816727]
[1761511637454,0.92003552,4069.6,4069.1,2.45752662]
[1761511639390,0.2512,4069.5,4069.1,2.45752662]
[1761511639596,0.2512,4069.5,4069.0,0.58816727]
[1761511639796,0.66883552,4069.6,4069.1,2.45754589]
[1761511639994,0.66883552,4069.6,4069.2,2.45747444]
[1761511640200,0.92003552,4069.6,4069.2,2.45747444]
[1761511640718,0.92003552,4069.6,4069.1,2.45952625]
[1761511643102,0.92003552,4069.6,4069.2,2.45743864]
[1761511643296,0.1232,4069.3,4069.2,2.45743864]
[1761511644192,0.1232,4069.3,4069.2,2.88513864]
[1761511650394,3.089,4069.8,4069.3,2.45739223]
[1761511650594,0.001,4070.0,4069.4,2.45736472]
[1761511650595,0.1232,4069.6,4069.4,2.45736472]
[1761511650795,0.1232,4069.6,4069.5,2.45730433]
[1761511651107,0.1232,4069.6,4069.5,2.88500433]
[1761511656137,0.001,4070.0,4069.7,2.45715181]
[1761511656341,0.1232,4069.8,4069.7,2.45715181]
[1761511656543,0.1232,4069.8,4069.7,2.88485181]
[1761511664476,0.1232,4069.8,4069.7,2.45715181]
[1761511664649,0.1232,4069.8,4069.7,2.91075181]
[1761511668876,0.001,4070.0,4069.9,2.45706282]
[1761511668877,0.1242,4070.0,4069.9,2.45706282]
[1761511681093,0.1242,4070.0,4069.9,2.91066282]
[1761511682073,0.1242,4070.0,4069.9,2.45706282]
[1761511683328,0.1242,4070.0,4069.9,5.98666282]
[1761511683834,0.001,4070.0,4069.9,6.99769586]
[1761511683985,0.001,4070.0,4069.9,7.12089586]
[1761511684322,0.001,4070.0,4069.9,8.12640985]
[1761511688344,0.001,4070.0,4069.9,7.24509586]
[1761511690546,0.001,4070.0,4069.9,0.1242]
[1761511690838,0.2242,4070.0,4069.9,3.087]
[1761511691004,0.2242,4070.0,4069.8,0.66040108]
[1761511691213,0.2242,4070.0,4069.8,3.087]
[1761511691214,0.2991,4069.9,4069.8,3.087]
[1761511691432,0.2991,4069.9,4069.7,3.087]
[1761511691624,0.2991,4069.9,4069.5,0.66040108]
[1761511691826,0.1232,4069.7,4069.5,0.66040108]
[1761511692220,0.4223,4069.7,4069.4,6.20475506]
[1761511692611,0.4223,4069.7,4069.5,2.45730053]
[1761511693249,0.4223,4069.7,4069.4,6.20475662]
[1761511693443,0.4223,4069.7,4069.4,5.54435554]
[1761511694143,0.099,4069.6,4069.4,3.087]
[1761511694925,0.099,4069.6,4069.3,0.95950108]
[1761511694926,3.92389359,4069.6,4069.3,0.95950108]
[1761511695113,0.1232,4069.4,4069.3,3.087]
[1761511695514,0.2222,4069.4,4069.3,3.087]
[1761511697380,0.2222,4069.4,4069.1,0.002]
[1761511697381,4.14609359,4069.4,4069.1,0.002]
[1761511697673,2.9643655,4069.2,4069.1,0.002]
[1761511697833,5.53779519,4069.2,4069.1,0.002]
[1761511698014,5.63679519,4069.2,4069.1,0.002]
[1761511698425,5.73515298,4069.2,4069.1,0.002]
[1761511700965,8.82215298,4069.2,4069.1,0.002]
[1761511707296,2.45766669,4068.9,4068.8,0.002]
[1761511707497,8.73374028,4068.9,4068.8,0.002]
[1761511707890,8.83212686,4068.9,4068.8,0.002]
[1761511708922,8.44844686,4068.9,4068.8,0.002]
[1761511709122,11.53644686,4068.9,4068.8,0.002]
[1761511709299,13.06155655,4068.9,4068.8,0.002]
[1761511711419,12.93835655,4068.9,4068.8,0.002]
[1761511717733,13.72929712,4068.9,4068.8,0.002]
[1761511721311,13.85249712,4068.9,4068.8,0.002]
[1761511730322,14.51382309,4068.9,4068.8,0.002]
[1761511730756,14.41392309,4068.9,4068.8,0.002]
[1761511731058,13.56239712,4068.9,4068.8,0.002]
[1761511731362,13.85059712,4068.9,4068.8,0.002]
[1761511731526,13.56239712,4068.9,4068.8,0.002]
[1761511731926,13.85059712,4068.9,4068.8,0.002]
[1761511732146,16.43559712,4068.9,4068.8,0.002]
[1761511732445,14.51192309,4068.9,4068.8,0.002]
[1761511733151,13.85059712,4068.9,4068.8,0.002]
[1761511733346,14.51192309,4068.9,4068.8,0.002]
[1761511735431,13.85059712,4068.9,4068.8,0.002]
[1761511736358,10.47439712,4068.9,4068.8,0.002]
[1761511736559,14.22667417,4068.9,4068.8,0.4297]
[1761511737556,14.22667417,4068.9,4068.8,0.002]
[1761511740366,0.88486363,4068.9,4068.8,0.002]
[1761511740567,0.001,4069.0,4068.8,0.4297]
[1761511740951,2.45861999,4069.0,4068.8,0.4297]
[1761511741158,0.50788,4069.0,4068.8,0.4297]
[1761511741869,0.001,4069.0,4068.8,0.4297]
[1761511744169,0.001,4069.0,4068.8,2.88741822]
[1761511744372,0.001,4069.0,4068.9,2.45766669]
[1761511744574,0.001,4069.0,4068.9,2.93066669]
[1761511744734,0.001,4069.0,4068.9,3.66815972]
[1761511745068,0.001,4069.0,4068.9,2.93066669]
[1761511745368,0.001,4069.0,4068.9,3.02899909]
[1761511745538,0.001,4069.0,4068.9,3.6729423]
[1761511746573,0.001,4069.0,4068.9,0.5713324]
[1761511746871,0.001,4069.0,4068.8,0.29094182]
[1761511746872,0.50688,4068.9,4068.8,0.002]
[1761511747177,0.50788,4069.0,4068.8,0.475]
[1761511747469,0.50788,4069.0,4068.9,0.09835223]
[1761511747874,0.50788,4069.0,4068.9,0.57135223]
[1761511749271,2.96548629,4069.0,4068.9,0.57135223]
[1761511749674,0.50788,4069.0,4068.9,0.57135223]
[1761511750442,0.63108,4069.0,4068.9,0.57135223]
[1761511752255,0.63108,4069.0,4068.9,0.473]
[1761511753382,0.63108,4069.0,4068.8,0.002]
[1761511753383,2.96454669,4068.9,4068.8,0.002]
[1761511753679,5.43445987,4068.9,4068.8,0.002]
[1761511753878,5.53435987,4068.9,4068.8,0.002]
[1761511755869,8.62735987,4068.9,4068.8,0.002]
[1761511763746,8.75055987,4068.9,4068.8,0.002]
[1761511779716,12.67908313,4068.9,4068.8,0.002]
[1761511783205,13.34236018,4068.9,4068.8,0.002]
[1761511787555,15.92736018,4068.9,4068.8,0.002]
[1761511787857,13.34236018,4068.9,4068.8,0.002]
[1761511788918,12.67908313,4068.9,4068.8,0.002]
[1761511795565,12.57918313,4068.9,4068.8,0.002]
[1761511839871,13.36507673,4068.9,4068.8,0.002]
[1761511844383,14.2489737,4068.9,4068.8,0.002]
[1761511844744,14.3488737,4068.9,4068.8,0.002]
[1761511845380,13.46497673,4068.9,4068.8,0.002]
[1761511845694,2.96466749,4068.7,4068.6,0.002]
[1761511845849,9.23446559,4068.4,4068.3,0.002]
[1761511846179,12.44566559,4068.4,4068.3,0.002]
[1761511846364,12.54556559,4068.4,4068.3,0.002]
[1761511846538,4.52010915,4068.3,4068.2,1e-08]
[1761511846742,5.53472233,4068.3,4068.2,1e-08]
[1761511847383,6.19791232,4068.3,4068.2,1e-08]
[1761511847543,5.53472233,4068.3,4068.2,1e-08]
[1761511848265,6.19773927,4068.3,4068.2,1e-08]
[1761511849462,6.09783927,4068.3,4068.2,1e-08]
[1761511853259,5.43482233,4068.3,4068.2,1e-08]
[1761511858484,5.5617583,4068.3,4068.2,1e-08]
[1761511859498,5.43582233,4068.3,4068.2,1e-08]
[1761511860698,5.55902233,4068.3,4068.2,1e-08]
[1761511868391,6.22203927,4068.3,4068.2,1e-08]
[1761511874294,5.55902233,4068.3,4068.2,1e-08]
[1761511877527,6.44396995,4068.3,4068.2,1e-08]
[1761511878843,5.55902233,4068.3,4068.2,1e-08]
[1761511879402,6.54387457,4068.3,4068.2,1e-08]
[1761511880235,5.65892233,4068.3,4068.2,1e-08]
[1761511880532,6.44392136,4068.3,4068.2,1e-08]
[1761511888462,6.54232222,4068.3,4068.2,1e-08]
[1761511898666,6.64222222,4068.3,4068.2,1e-08]
[1761511899674,9.22922222,4068.3,4068.2,1e-08]
[1761511899858,6.64222222,4068.3,4068.2,1e-08]
[1761511901172,6.54232222,4068.3,4068.2,1e-08]
[1761511901776,10.472773,4068.3,4068.2,1e-08]
[1761511902276,10.572673,4068.3,4068.2,1e-08]
[1761511903371,10.472773,4068.3,4068.2,1e-08]
[1761511906275,9.58787397,4068.3,4068.2,1e-08]
[1761511906681,10.47282505,4068.3,4068.2,1e-08]
[1761511907308,9.58787397,4068.3,4068.2,1e-08]
[1761511916297,9.68777397,4068.3,4068.2,1e-08]
[1761511916966,9.58787397,4068.3,4068.2,1e-08]
[1761511928916,9.58787397,4068.3,4068.2,0.46250001]
[1761511929220,8.67316079,4068.3,4068.2,0.46250001]
[1761511933841,5.30772973,4068.3,4068.2,0.46250001]
[1761511934006,12.32518051,4068.3,4068.2,0.46250001]
[1761511934725,12.32518051,4068.3,4068.2,1e-08]
[1761511934925,11.66175993,4068.3,4068.2,1e-08]
[1761511935135,13.16222815,4068.3,4068.2,1e-08]
[1761511935342,13.72462815,4068.3,4068.2,1e-08]
[1761511936236,13.62472815,4068.3,4068.2,1e-08]
[1761511942336,14.50920578,4068.3,4068.2,1e-08]
[1761511942943,14.60910578,4068.3,4068.2,1e-08]
[1761511943627,13.72462815,4068.3,4068.2,1e-08]
[1761511943832,14.60909714,4068.3,4068.2,1e-08]
[1761511944030,13.72462815,4068.3,4068.2,1e-08]
[1761511944236,14.5091955,4068.3,4068.1,1e-08]
[1761511944537,14.5091955,4068.3,4066.4,0.66473585]
[1761511944538,4.52077394,4067.2,4067.1,0.01]
[1761511944745,12.20168883,4067.2,4067.1,0.01]
[1761511944948,11.53822472,4067.2,4067.1,0.4725]
[1761511945150,1.5552,4067.2,4067.1,0.7032]
[1761511945378,3.087,4067.2,4067.1,0.80160086]
[1761511945714,3.59388,4067.2,4067.1,0.80160086]
[1761511952119,3.59388,4067.2,4067.1,1.13031294]
[1761511952556,3.59388,4067.2,4067.1,0.80160086]
[1761511953954,0.50688,4067.2,4067.1,0.80160086]
[1761511954361,0.63008,4067.2,4067.1,0.80160086]
[1761511955333,0.1232,4067.2,4067.1,0.80160086]
[1761511955538,0.1232,4067.2,4067.1,3.26035525]
[1761511955761,0.1232,4067.2,4067.1,3.83247602]
[1761511957942,3.087,4067.6,4067.1,3.83247602]
[1761511958158,0.1232,4067.5,4067.3,2.45858028]
[1761511958646,0.1232,4067.5,4067.4,1.20245581]
[1761511965374,0.63008,4067.5,4067.4,1.20245581]
[1761511965576,0.63008,4067.5,4067.4,1.59284225]
[1761511965738,0.63008,4067.5,4067.4,1.20245581]
[1761511970082,0.63008,4067.5,4067.4,3.66102885]
[1761511970276,0.63008,4067.5,4067.4,1.20245581]
[1761511971185,0.63008,4067.5,4067.4,3.66102885]
[1761511971584,0.1232,4067.5,4067.4,3.66102885]
[1761511971884,0.1232,4067.5,4067.4,4.29727061]
[1761511976516,0.1242,4067.5,4067.4,4.29727061]
[1761511986790,0.1242,4067.5,4067.4,3.5594148]
[1761511991047,0.001,4067.5,4067.4,6.6454148]
[1761511991206,0.001,4067.5,4067.4,7.38320528]
[1761511993406,0.001,4067.5,4067.4,6.6454148]
[1761511994537,0.001,4067.5,4067.4,7.30815065]
[1761512008574,0.001,4067.5,4067.4,7.30621543]
[1761512019251,0.001,4067.5,4067.4,6.6454148]
[1761512022780,0.001,4067.5,4067.4,3.0948148]
[1761512022979,0.1006,4067.5,4067.4,2.45857304]
[1761512023163,0.001,4067.5,4067.4,2.45857304]
[1761512054235,0.001,4067.5,4067.4,2.58177304]
[1761512058446,0.001,4067.5,4067.4,3.04327304]
[1761512060534,0.001,4067.5,4067.4,6.97136136]
[1761512060739,0.001,4067.5,4067.4,8.34809625]
[1761512064360,0.001,4067.5,4067.4,9.22941024]
[1761512075350,0.001,4067.5,4067.4,8.76791024]
[1761512075554,0.001,4067.5,4067.4,9.22941024]
[1761512076362,0.001,4067.5,4067.4,9.23026558]
[1761512079956,0.001,4067.5,4067.4,8.34809625]
[1761512082482,0.001,4067.5,4067.4,8.34512882]
[1761512085794,0.001,4067.5,4067.4,4.4170405]
[1761512088190,0.001,4067.5,4067.4,5.29912208]
[1761512088379,0.001,4067.5,4067.4,4.4170405]
[1761512088690,0.001,4067.5,4067.4,5.29914158]
[1761512088879,0.001,4067.5,4067.4,4.83764158]
[1761512095070,0.001,4067.5,4067.4,3.9555405]
[1761512098976,0.001,4067.5,4067.4,4.4143405]
[1761512100514,0.001,4067.5,4067.4,5.9695405]
[1761512105015,0.001,4067.5,4067.4,5.5107405]
[1761512105192,0.001,4067.5,4067.4,8.5937405]
[1761512105593,0.001,4067.5,4067.4,5.5107405]
[1761512105818,0.1006,4067.5,4067.4,2.58177304]
[1761512109438,0.1006,4067.5,4067.4,2.58377304]
[1761512111519,0.1006,4067.5,4067.4,2.46057304]
[1761512126868,0.001,4067.5,4067.4,2.46057304]
[1761512127069,0.1006,4067.5,4067.4,2.46057304]
[1761512133308,0.001,4067.5,4067.4,2.46057304]
[1761512134378,0.001,4067.5,4067.4,4.56792993]
[1761512134555,0.001,4067.5,4067.4,4.03004294]
[1761512136291,0.001,4067.5,4067.4,4.00545721]
[1761512137408,0.001,4067.5,4067.4,4.03004294]
[1761512137991,0.001,4067.5,4067.4,6.90680767]
[1761512138217,0.001,4067.5,4067.4,5.56065721]
[1761512138810,0.001,4067.5,4067.4,6.88222194]
[1761512139389,0.001,4067.5,4067.4,5.56065721]
[1761512147829,0.001,4067.5,4067.4,9.48675724]
[1761512148330,0.001,4067.5,4067.4,12.56875724]
[1761512149326,0.001,4067.5,4067.4,13.88723381]
[1761512149906,0.001,4067.5,4067.4,12.56875724]
[1761512150107,0.001,4067.5,4067.4,13.88718747]
[1761512157838,0.001,4067.5,4067.4,4.13897304]
[1761512158039,0.001,4067.5,4067.4,8.10042837]
[1761512158215,0.001,4067.5,4067.4,7.22097304]
[1761512163242,0.001,4067.5,4067.4,8.53940327]
[1761512163926,0.001,4067.5,4067.4,8.98870327]
[1761512164130,0.001,4067.5,4067.4,10.56234177]
[1761512164732,0.001,4067.5,4067.4,10.11304177]
[1761512164933,0.001,4067.5,4067.4,8.53940327]
[1761512166734,0.001,4067.5,4067.4,8.41620327]
[1761512172484,0.001,4067.5,4067.4,8.84580327]
[1761512173784,0.001,4067.5,4067.4,8.41620327]
[1761512174882,0.1006,4067.5,4067.4,8.41620327]
[1761512176180,0.001,4067.5,4067.4,8.41620327]
[1761512181258,0.001,4067.5,4067.4,7.09777304]
[1761512187013,0.001,4067.5,4067.4,8.51266852]
[1761512188180,0.1006,4067.5,4067.4,8.51266852]
[1761512188393,0.1006,4067.5,4067.4,7.09777304]
[1761512188813,0.001,4067.5,4067.4,7.09777304]
[1761512189012,0.001,4067.5,4067.4,2.46057304]
[1761512189210,0.001,4067.5,4067.4,3.34397999]
[1761512189211,0.1006,4067.5,4067.4,3.34397999]
[1761512189410,0.1006,4067.5,4067.4,2.46057304]
[1761512190282,0.1006,4067.5,4067.4,3.12268731]
[1761512191380,0.1006,4067.5,4067.4,2.46057304]
[1761512191710,0.1006,4067.5,4067.4,0.002]
[1761512191916,0.2012,4067.5,4067.4,0.002]
[1761512192287,0.2012,4067.5,4067.4,2.46057304]
[1761512195015,0.2012,4067.5,4067.4,0.002]
[1761512195386,0.1006,4067.5,4067.4,0.002]
[1761512198509,0.60748,4067.5,4067.4,0.002]
[1761512198710,0.74201485,4067.5,4067.4,0.002]
[1761512198911,5.40602695,4067.5,4067.4,0.002]
[1761512199112,5.52922695,4067.5,4067.4,0.002]
[1761512199490,7.98773954,4067.5,4067.4,0.002]
[1761512200717,9.54293954,4067.5,4067.4,0.002]
[1761512202496,5.61683951,4067.5,4067.4,0.002]
[1761512203000,8.69883951,4067.5,4067.4,0.002]
[1761512203205,6.24032692,4067.5,4067.4,0.002]
[1761512203724,8.69883951,4067.5,4067.4,0.002]
[1761512204309,0.50688,4067.4,4067.3,0.52628858]
[1761512204509,2.15554285,4067.4,4067.3,0.52628858]
[1761512205599,2.68183143,4067.4,4067.3,0.52628858]
[1761512206136,1.25596858,4067.4,4067.3,0.52628858]
[1761512207637,3.71454162,4067.4,4067.3,0.52628858]
[1761512207838,3.71454162,4067.4,4067.3,0.52828858]
[1761512209432,3.71454162,4067.4,4067.3,0.002]
[1761512210132,1.25596858,4067.4,4067.3,0.002]
[1761512210333,4.56326506,4067.4,4067.3,0.002]
[1761512213154,2.10469202,4067.4,4067.3,0.002]
[1761512215239,4.56326506,4067.4,4067.3,0.002]
[1761512218350,6.11846506,4067.4,4067.3,0.002]
[1761512221258,9.20146506,4067.4,4067.3,0.002]
[1761512221652,5.38878506,4067.4,4067.3,0.002]
[1761512221857,6.13641202,4067.4,4067.3,0.002]
[1761512222156,6.74289202,4067.4,4067.3,0.002]
[1761512224625,9.20146506,4067.4,4067.3,0.002]
[1761512225130,9.20246506,4067.4,4067.3,0.002]
[1761512226852,8.67617648,4067.4,4067.3,0.002]
[1761512229554,6.21760344,4067.4,4067.3,0.002]
[1761512230257,8.67617648,4067.4,4067.3,0.002]
[1761512238994,9.33778369,4067.4,4067.3,0.002]
[1761512241275,8.67617648,4067.4,4067.3,0.002]
[1761512244504,5.59317648,4067.4,4067.3,0.002]
[1761512244709,8.67617648,4067.4,4067.3,0.002]
[1761512250603,9.56079837,4067.4,4067.3,0.002]
[1761512251388,8.67617648,4067.4,4067.3,0.002]
[1761512256912,9.56079837,4067.4,4067.3,0.002]
[1761512261925,9.46119837,4067.4,4067.3,0.002]
[1761512262252,9.56079837,4067.4,4067.3,0.002]
[1761512266384,8.67617648,4067.4,4067.3,0.002]
[1761512269780,12.60817425,4067.4,4067.3,0.002]
[1761512275510,13.93510709,4067.4,4067.3,0.002]
[1761512282301,0.50688,4067.1,4066.9,0.002]
[1761512282507,10.08527004,4067.0,4066.9,0.002]
[1761512282730,12.64368489,4067.0,4066.9,0.002]
[1761512282933,11.75869262,4067.0,4066.9,0.002]
[1761512284303,11.65909262,4067.0,4066.9,0.002]
[1761512284524,12.64235091,4067.0,4066.9,0.002]
[1761512284730,12.74195091,4067.0,4066.9,0.002]
[1761512286310,12.64235091,4067.0,4066.9,0.002]
[1761512290552,12.74195091,4067.0,4066.9,0.002]
[1761512293645,12.64235091,4067.0,4066.9,0.002]
[1761512293852,12.74195091,4067.0,4066.9,0.002]
[1761512294329,12.64235091,4067.0,4066.9,0.002]
[1761512295466,12.74078833,4067.0,4066.9,0.002]
[1761512296743,12.84038833,4067.0,4066.9,0.002]
[1761512297762,12.74078833,4067.0,4066.9,0.002]
[1761512300367,12.74078833,4067.0,4066.9,0.4699]
[1761512301332,12.64235091,4067.0,4066.9,0.4699]
[1761512305697,12.64335091,4067.0,4066.9,0.4699]
[1761512306058,9.55935091,4067.0,4066.9,0.4699]
[1761512306302,13.52795292,4067.0,4066.9,0.4699]
[1761512311686,13.52795292,4067.0,4066.9,0.002]
[1761512312311,12.64335091,4067.0,4066.9,0.002]
[1761512313225,13.52831237,4067.0,4066.9,0.002]
[1761512314413,13.52831237,4067.0,4066.9,0.4699]
[1761512315126,12.64335091,4067.0,4066.9,0.4699]
[1761512316530,12.64335091,4067.0,4066.9,0.002]
[1761512319958,13.52824136,4067.0,4066.9,0.002]
[1761512320321,12.64335091,4067.0,4066.9,0.002]
[1761512320822,13.52824005,4067.0,4066.9,0.002]
[1761512326389,4.52095531,4066.9,4066.8,0.002]
[1761512326675,4.52131812,4066.3,4066.2,0.002]
[1761512326973,7.72751812,4066.3,4066.2,0.002]
[1761512328170,7.82651812,4066.3,4066.2,0.002]
[1761512328588,8.61194236,4066.3,4066.2,0.002]
[1761512328774,9.59520065,4066.3,4066.2,0.002]
[1761512329073,6.51220065,4066.3,4066.2,0.002]
[1761512329271,8.71077641,4066.3,4066.2,0.002]
[1761512329773,13.43159741,4066.3,4066.2,0.002]
[1761512338902,13.43159741,4066.3,4066.2,0.4471]
[1761512338903,14.09395892,4066.3,4066.2,0.4471]
[1761512345436,13.43159741,4066.3,4066.2,0.4471]
[1761512346429,14.09395892,4066.3,4066.2,0.4471]
[1761512348641,14.09395892,4066.3,4066.2,0.9463]
[1761512350445,13.11070063,4066.3,4066.2,0.9463]
[1761512350947,13.11070063,4066.3,4066.2,0.5012]
[1761512351144,12.44833912,4066.3,4066.2,0.5012]
[1761512352356,13.43176336,4066.3,4066.2,0.5012]
[1761512353836,4.5213786,4066.2,4066.1,1e-08]
[1761512354037,6.20956665,4066.2,4066.1,1e-08]
[1761512354219,7.19244939,4066.2,4066.1,1e-08]
[1761512355117,7.09399089,4066.2,4066.1,1e-08]
[1761512355818,2.96623909,4066.1,4065.7,0.002]
[1761512356151,5.53308883,4066.1,4065.7,0.002]
[1761512357149,5.97578883,4066.1,4065.7,0.002]
[1761512357355,7.30298646,4066.1,4065.7,0.002]
[1761512363971,2.96642055,4065.8,4065.7,0.002]
[1761512364177,14.45557464,4065.8,4065.7,0.002]
[1761512369279,13.57152465,4065.8,4065.7,0.002]
[1761512372423,14.45557464,4065.8,4065.7,0.002]
[1761512373195,13.57152465,4065.8,4065.7,0.002]
[1761512373494,14.45557464,4065.8,4065.7,0.002]
[1761512378933,14.55403751,4065.8,4065.7,0.002]
[1761512379232,14.65303751,4065.8,4065.7,0.002]
[1761512379404,13.76898752,4065.8,4065.7,0.002]
[1761512379808,13.66998752,4065.8,4065.7,0.002]
[1761512380034,13.77208752,4065.8,4065.7,0.002]
[1761512380233,0.50688,4065.6,4065.2,0.002]
[1761512380453,4.01480105,4065.7,4065.2,0.002]
[1761512380454,9.24274406,4065.3,4065.2,0.002]
[1761512380752,9.24274406,4065.3,4065.1,0.01]
[1761512380753,4.52198357,4065.2,4065.1,0.01]
[1761512380951,8.5922999,4065.2,4065.1,0.01]
[1761512381247,2.96738883,4064.2,4063.7,0.2263]
[1761512381455,6.05138883,4064.2,4063.7,0.2263]
[1761512381744,6.17458883,4064.2,4064.1,0.4576]
[1761512382958,12.45060983,4064.2,4064.1,0.01]
[1761512383125,12.45060983,4064.2,4064.1,0.4576]
[1761512384539,12.45060983,4064.2,4064.1,0.01]
[1761512384842,13.36325957,4064.2,4064.1,0.01]
[1761512386346,12.45060983,4064.2,4064.1,0.01]
[1761512391819,11.66758195,4064.2,4064.1,0.01]
[1761512392636,11.66758195,4064.2,4063.4,0.2312]
[1761512392637,8.46080581,4063.5,4063.4,0.2312]
[1761512392824,11.66900581,4063.5,4063.4,0.6788]
[1761512394452,11.66900581,4063.5,4063.1,0.01]
[1761512394453,2.96799439,4063.2,4063.1,0.01]
[1761512394645,11.66918751,4063.2,4063.1,0.01]
[1761512395048,11.66918751,4063.2,4063.1,0.4576]
[1761512395256,11.66918751,4063.2,4062.1,2.47176879]
[1761512395257,13.08220987,4063.2,4062.3,0.6788]
[1761512395556,0.50688,4062.3,4062.1,0.01]
[1761512395758,0.50688,4062.2,4062.1,0.01]
[1761512395930,0.50688,4062.8,4062.1,2.47175026]
[1761512396279,0.50688,4062.6,4062.2,0.71789503]
[1761512396483,0.50688,4062.4,4062.2,0.71789503]
[1761512396684,0.50688,4062.4,4062.3,0.4476]
[1761512398451,4.44467312,4062.4,4062.3,0.4476]
[1761512399072,0.50688,4062.4,4062.3,0.4476]
[1761512399658,3.60088,4062.4,4062.3,0.4476]
[1761512402246,3.60088,4062.4,4062.3,0.73973073]
[1761512402780,3.60088,4062.4,4062.3,0.4476]
[1761512403681,3.095,4062.4,4062.3,2.90925965]
[1761512404958,3.095,4062.4,4062.3,0.4476]
[1761512405384,3.2182,4062.4,4062.3,0.4476]
[1761512405588,3.2182,4062.4,4062.3,2.90925965]
[1761512405763,3.2182,4062.4,4062.3,3.49232971]
[1761512406253,3.2182,4062.4,4062.3,1.03067006]
[1761512406664,3.2182,4062.4,4062.3,3.49232971]
[1761512406870,3.095,4062.7,4062.5,2.46152293]
[1761512407165,3.095,4062.7,4062.6,2.46147787]
[1761512407510,3.095,4062.7,4062.6,2.93057787]
[1761512407687,0.1232,4062.8,4062.7,2.46141728]
[1761512407886,3.93879312,4064.1,4062.7,2.46141728]
[1761512407887,3.095,4063.0,4062.9,2.46127399]
[1761512408089,0.1232,4063.0,4062.9,2.46127399]
[1761512408291,0.1232,4063.0,4062.9,3.46955312]
[1761512408460,0.1232,4063.0,4062.9,1.00827913]
[1761512409786,0.1232,4063.0,4062.9,3.46957524]
[1761512417082,0.001,4063.1,4063.0,2.46123554]
[1761512417282,0.001,4063.1,4063.0,2.92544789]
[1761512417511,0.001,4063.1,4063.0,3.5180402]
[1761512417810,0.001,4063.1,4063.0,3.49342785]
[1761512427447,0.001,4063.1,4063.0,3.05382785]
[1761512427908,0.001,4063.1,4063.0,3.49342785]
[1761512434850,0.001,4063.1,4063.0,3.49542785]
[1761512445406,0.001,4063.1,4063.0,4.23398483]
[1761512446087,0.001,4063.1,4063.0,5.11739178]
[1761512448380,0.001,4063.1,4063.0,4.23398483]
[1761512448692,0.001,4063.1,4063.0,5.11739178]
[1761512449775,0.001,4063.1,4063.0,4.23398483]
[1761512450364,0.001,4063.1,4063.0,5.56055246]
[1761512455370,0.001,4063.1,4063.0,4.23398483]
[1761512456306,0.001,4063.1,4063.0,7.23895246]
[1761512456598,0.001,4063.1,4063.0,5.91238483]
[1761512457465,0.001,4063.1,4063.0,8.50238483]
[1761512457798,0.001,4063.1,4063.0,5.91238483]
[1761512462488,0.001,4063.1,4063.0,5.78918483]
[1761512463404,0.001,4063.1,4063.0,5.71478483]
[1761512466915,0.001,4063.1,4063.0,4.97622785]
[1761512472629,0.001,4063.1,4063.0,5.09942785]
[1761512477432,0.001,4063.1,4063.0,6.86309925]
[1761512485451,0.001,4063.1,4063.0,5.09942785]
[1761512488454,0.001,4063.1,4063.0,4.2334821]
[1761512488626,0.1009,4063.1,4063.0,2.46323554]
[1761512489516,0.001,4063.1,4063.0,2.46323554]
[1761512490456,0.1009,4063.1,4063.0,2.46323554]
[1761512494354,0.001,4063.1,4063.0,2.46323554]
[1761512495464,0.1009,4063.1,4063.0,2.46323554]
[1761512496165,0.001,4063.1,4063.0,2.46323554]
[1761512496768,0.1009,4063.1,4063.0,2.46323554]
[1761512498548,0.1009,4063.1,4063.0,2.58643554]
[1761512498745,0.001,4063.1,4063.0,2.58643554]
[1761512499075,0.001,4063.1,4063.0,4.45276391]
[1761512499571,0.001,4063.1,4063.0,5.33810346]
[1761512501441,0.001,4063.1,4063.0,4.00546391]
[1761512504374,0.001,4063.1,4063.0,4.45276391]
[1761512507758,0.001,4063.1,4063.0,5.78063224]
[1761512509151,0.001,4063.1,4063.0,4.45276391]
[1761512509381,0.001,4063.1,4063.0,5.78063224]
[1761512515385,0.001,4063.1,4063.0,4.45276391]
[1761512515889,0.001,4063.1,4063.0,8.38714316]
[1761512517710,0.001,4063.1,4063.0,7.93984316]
[1761512520353,0.001,4063.1,4063.0,9.49504316]
[1761512522933,0.001,4063.1,4063.0,9.94234316]
[1761512528522,0.001,4063.1,4063.0,9.49504316]
[1761512532826,0.001,4063.1,4063.0,9.96874316]
[1761512534856,0.001,4063.1,4063.0,9.49504316]
[1761512535055,0.001,4063.1,4063.0,9.96874316]
[1761512535842,1e-08,4063.5,4063.4,2.46099325]
[1761512536047,0.001,4063.6,4063.5,1.5552]
[1761512536770,0.001,4063.6,4063.5,4.01613269]
[1761512538296,0.001,4063.6,4063.5,4.48983269]
[1761512538950,0.001,4063.6,4063.5,4.01613269]
[1761512542280,0.001,4063.6,4063.5,11.03551194]
[1761512542489,0.1,4063.6,4063.5,14.0350054]
[1761512542679,0.1,4063.6,4063.5,12.70836204]
[1761512543801,0.1,4063.6,4063.5,8.77398279]
[1761512544001,0.1,4063.6,4063.5,7.10113269]
[1761512544295,0.1,4063.6,4063.5,7.98558858]
[1761512549295,0.1,4063.6,4063.5,0.88445589]
[1761512549496,0.1,4063.6,4063.5,2.46093269]
[1761512549698,0.2,4063.6,4063.5,2.46093269]